[Event "Late-Titled-Tuesday-Blitz-October-17-2023"]
[Site "Chess.com"]
[Date "2023.10.17"]
[Round "5"]
[White "azikom"]
[Black "micke12a"]
[Result "1/2-1/2"]
[WhiteElo "2600"]
[BlackElo "2369"]
[TimeControl "180+1"]
[EndTime "14:56:14 PDT"]
[Termination "Game drawn - insufficient material"]

1. c4 {[%clk 0:02:30.1]} 1... Nf6 {[%clk 0:02:57.7]} 2. Nc3 {[%clk 0:02:29.9]}
2... g6 {[%clk 0:02:55.2]} 3. e4 {[%clk 0:02:29.6]} 3... e5 {[%clk 0:02:55.5]}
4. d4 {[%clk 0:02:30.2]} 4... exd4 {[%clk 0:02:51.9]} 5. Qxd4 {[%clk 0:02:31.1]}
5... Bg7 {[%clk 0:02:50.2]} 6. Bg5 {[%clk 0:02:30.3]} 6... Nc6 {[%clk
0:02:49.4]} 7. Qd2 {[%clk 0:02:30.1]} 7... O-O {[%clk 0:02:45.2]} 8. f3 {[%clk
0:02:29.2]} 8... d6 {[%clk 0:02:42.6]} 9. O-O-O {[%clk 0:02:28.3]} 9... Re8
{[%clk 0:02:36.6]} 10. h4 {[%clk 0:02:27.7]} 10... h5 {[%clk 0:02:34.2]} 11.
Nge2 {[%clk 0:02:26.1]} 11... Ne5 {[%clk 0:02:27.5]} 12. Nf4 {[%clk 0:02:25.5]}
12... Qd7 {[%clk 0:02:21.1]} 13. Nfd5 {[%clk 0:02:22.1]} 13... Nxd5 {[%clk
0:02:17.9]} 14. cxd5 {[%clk 0:02:23]} 14... a6 {[%clk 0:02:10]} 15. Kb1 {[%clk
0:02:21.3]} 15... b5 {[%clk 0:02:03.4]} 16. Rc1 {[%clk 0:02:15.4]} 16... Rb8
{[%clk 0:02:02.4]} 17. Bh6 {[%clk 0:02:07.9]} 17... Bh8 {[%clk 0:01:54.8]} 18.
Nd1 {[%clk 0:02:02.6]} 18... Bb7 {[%clk 0:01:45.7]} 19. Ne3 {[%clk 0:01:53.8]}
19... Rec8 {[%clk 0:01:21.9]} 20. Be2 {[%clk 0:01:53.4]} 20... c6 {[%clk
0:01:11.9]} 21. dxc6 {[%clk 0:01:54.3]} 21... Rxc6 {[%clk 0:01:11]} 22. Rxc6
{[%clk 0:01:52.6]} 22... Bxc6 {[%clk 0:01:08.1]} 23. Bf4 {[%clk 0:01:14.6]}
23... Nc4 {[%clk 0:01:00.5]} 24. Bxc4 {[%clk 0:01:12.9]} 24... bxc4 {[%clk
0:01:00.6]} 25. Nxc4 {[%clk 0:01:13.3]} 25... Bb5 {[%clk 0:00:46.8]} 26. Qxd6
{[%clk 0:01:08.9]} 26... Qxd6 {[%clk 0:00:30.9]} 27. Nxd6 {[%clk 0:00:56.8]}
27... Bd3+ {[%clk 0:00:29.3]} 28. Kc1 {[%clk 0:00:56.8]} 28... Rxb2 {[%clk
0:00:28.9]} 29. e5 {[%clk 0:00:28.3]} 29... Rb1+ {[%clk 0:00:21.2]} 30. Kd2
{[%clk 0:00:28.1]} 30... Rxh1 {[%clk 0:00:21.7]} 31. Kxd3 {[%clk 0:00:28.7]}
31... Rxh4 {[%clk 0:00:22.2]} 32. Bg3 {[%clk 0:00:26.9]} 32... Ra4 {[%clk
0:00:22.2]} 33. Nc4 {[%clk 0:00:23]} 33... Rxa2 {[%clk 0:00:21.5]} 34. Bh4
{[%clk 0:00:19.2]} 34... Rxg2 {[%clk 0:00:19.3]} 35. f4 {[%clk 0:00:20.1]} 35...
Rg4 {[%clk 0:00:18.7]} 36. Bg5 {[%clk 0:00:20.6]} 36... h4 {[%clk 0:00:16.4]}
37. Ne3 {[%clk 0:00:21]} 37... Rg3 {[%clk 0:00:08.8]} 38. Bxh4 {[%clk
0:00:20.9]} 38... Rg1 {[%clk 0:00:08.1]} 39. Nd5 {[%clk 0:00:18.5]} 39... Rd1+
{[%clk 0:00:07.6]} 40. Ke4 {[%clk 0:00:18.4]} 40... Kh7 {[%clk 0:00:07.1]} 41.
Bd8 {[%clk 0:00:16.1]} 41... Ra1 {[%clk 0:00:05.7]} 42. Bc7 {[%clk 0:00:08.1]}
42... Bg7 {[%clk 0:00:05.5]} 43. Bd6 {[%clk 0:00:07.3]} 43... Kh6 {[%clk
0:00:05]} 44. f5 {[%clk 0:00:06.1]} 44... Ra4+ {[%clk 0:00:03]} 45. Kf3 {[%clk
0:00:05.8]} 45... gxf5 {[%clk 0:00:02.7]} 46. Ne3 {[%clk 0:00:05.7]} 46... f4
{[%clk 0:00:02.4]} 47. Nf5+ {[%clk 0:00:05.4]} 47... Kg6 {[%clk 0:00:03]} 48.
Ne7+ {[%clk 0:00:05.3]} 48... Kg5 {[%clk 0:00:03.5]} 49. Nd5 {[%clk 0:00:04.6]}
49... Ra3+ {[%clk 0:00:03.3]} 50. Ke4 {[%clk 0:00:04.6]} 50... f3 {[%clk
0:00:02.5]} 51. Be7+ {[%clk 0:00:04.3]} 51... Kg4 {[%clk 0:00:02.8]} 52. Bxa3
{[%clk 0:00:04.6]} 52... f2 {[%clk 0:00:02.8]} 53. Ne3+ {[%clk 0:00:05.1]} 53...
Kg3 {[%clk 0:00:03.5]} 54. Nf1+ {[%clk 0:00:05.2]} 54... Kg2 {[%clk 0:00:03.8]}
55. Ne3+ {[%clk 0:00:05.6]} 55... Kg1 {[%clk 0:00:03.9]} 56. Bc5 {[%clk
0:00:06.1]} 56... f1=Q {[%clk 0:00:03.5]} 57. Nxf1+ {[%clk 0:00:06.3]} 57...
Kxf1 {[%clk 0:00:04.4]} 58. Bb6 {[%clk 0:00:05.7]} 58... Kg2 {[%clk 0:00:01.7]}
59. Kf5 {[%clk 0:00:05.8]} 59... Kh3 {[%clk 0:00:01.8]} 60. e6 {[%clk
0:00:05.7]} 60... fxe6+ {[%clk 0:00:01.6]} 61. Kxe6 {[%clk 0:00:06.6]} 61... Bc3
{[%clk 0:00:02.1]} 62. Kd5 {[%clk 0:00:07.2]} 62... a5 {[%clk 0:00:02.7]} 63.
Kc4 {[%clk 0:00:07.5]} 63... Bb4 {[%clk 0:00:03.2]} 64. Kb5 {[%clk 0:00:07.6]}
64... a4 {[%clk 0:00:03.9]} 65. Kxa4 {[%clk 0:00:07.4]} 1/2-1/2

[Event "Late-Titled-Tuesday-Blitz-October-17-2023"]
[Site "Chess.com"]
[Date "2023.10.17"]
[Round "5"]
[White "gmcorrales"]
[Black "MKlose11"]
[Result "0-1"]
[WhiteElo "2838"]
[BlackElo "2644"]
[TimeControl "180+1"]
[EndTime "14:56:24 PDT"]
[Termination "MKlose11 won by resignation"]

1. e4 {[%clk 0:03:00.9]} 1... e6 {[%clk 0:02:59.8]} 2. d4 {[%clk 0:03:00]} 2...
d5 {[%clk 0:03:00.2]} 3. e5 {[%clk 0:03:00.5]} 3... c5 {[%clk 0:02:58.7]} 4. c3
{[%clk 0:03:01.1]} 4... Nc6 {[%clk 0:02:54.5]} 5. Nf3 {[%clk 0:03:00.4]} 5...
Qb6 {[%clk 0:02:54.2]} 6. a3 {[%clk 0:02:59.5]} 6... f6 {[%clk 0:02:54.7]} 7.
Bd3 {[%clk 0:02:52.1]} 7... fxe5 {[%clk 0:02:53.3]} 8. Nxe5 {[%clk 0:02:53]}
8... Nf6 {[%clk 0:02:20.8]} 9. O-O {[%clk 0:02:45.2]} 9... Bd6 {[%clk
0:02:15.2]} 10. Nxc6 {[%clk 0:02:34.1]} 10... bxc6 {[%clk 0:02:11.8]} 11. dxc5
{[%clk 0:02:27.6]} 11... Bxc5 {[%clk 0:02:09.3]} 12. b4 {[%clk 0:02:27.1]} 12...
Bd6 {[%clk 0:02:09.5]} 13. c4 {[%clk 0:02:21.8]} 13... Qc7 {[%clk 0:02:03.4]}
14. g3 {[%clk 0:02:21.4]} 14... O-O {[%clk 0:01:59.9]} 15. c5 {[%clk 0:02:10.2]}
15... Be7 {[%clk 0:01:59.9]} 16. f4 {[%clk 0:01:06.8]} 16... e5 {[%clk
0:01:56.9]} 17. fxe5 {[%clk 0:00:59.9]} 17... Qxe5 {[%clk 0:01:57.8]} 18. Ra2
{[%clk 0:00:57.3]} 18... Bg4 {[%clk 0:01:47.8]} 19. Qe1 {[%clk 0:00:28.1]} 19...
Qc7 {[%clk 0:01:32.3]} 20. Bf4 {[%clk 0:00:27.6]} 20... Qd7 {[%clk 0:01:31]} 21.
Nc3 {[%clk 0:00:26]} 21... Rae8 {[%clk 0:01:30.3]} 22. Qd2 {[%clk 0:00:23.4]}
22... Bh3 {[%clk 0:01:27.3]} 23. Re1 {[%clk 0:00:23.2]} 23... d4 {[%clk
0:01:18]} 24. Ne4 {[%clk 0:00:22.4]} 24... Nd5 {[%clk 0:01:18.2]} 25. Bd6 {[%clk
0:00:21.3]} 25... Bxd6 {[%clk 0:01:08.6]} 26. Nxd6 {[%clk 0:00:22.2]} 26...
Rxe1+ {[%clk 0:01:05.7]} 27. Qxe1 {[%clk 0:00:23.1]} 27... Ne3 {[%clk
0:01:03.7]} 28. Rf2 {[%clk 0:00:21.7]} 28... Qe6 {[%clk 0:00:48.3]} 29. Rxf8+
{[%clk 0:00:20.3]} 29... Kxf8 {[%clk 0:00:48]} 30. Bc4 {[%clk 0:00:18.5]} 30...
Nxc4 {[%clk 0:00:44.5]} 31. Qf2+ {[%clk 0:00:16]} 31... Ke7 {[%clk 0:00:34.8]}
32. Nb7 {[%clk 0:00:11.9]} 32... Qe3 {[%clk 0:00:30.7]} 33. Qxe3+ {[%clk
0:00:10.9]} 33... Nxe3 {[%clk 0:00:28.2]} 34. Na5 {[%clk 0:00:10.7]} 34... Kd7
{[%clk 0:00:26.7]} 35. Kf2 {[%clk 0:00:11.3]} 35... Nc2 {[%clk 0:00:21.3]} 36.
Kf3 {[%clk 0:00:11]} 36... Nxa3 {[%clk 0:00:19.6]} 37. g4 {[%clk 0:00:11.6]}
37... h5 {[%clk 0:00:18.7]} 38. gxh5 {[%clk 0:00:11.6]} 38... Nc2 {[%clk
0:00:17.8]} 39. Ke4 {[%clk 0:00:11.7]} 39... Be6 {[%clk 0:00:14.6]} 40. Nb7
{[%clk 0:00:08.4]} 40... Nxb4 {[%clk 0:00:14.3]} 41. Kxd4 {[%clk 0:00:08.8]}
41... Bg4 {[%clk 0:00:13.5]} 42. Nd6 {[%clk 0:00:07.6]} 42... Bxh5 {[%clk
0:00:12.1]} 43. Nf5 {[%clk 0:00:08.2]} 43... g6 {[%clk 0:00:12.3]} 44. Nd6
{[%clk 0:00:08.3]} 44... Nd5 {[%clk 0:00:12.2]} 45. Nc4 {[%clk 0:00:08.6]} 45...
Nf6 {[%clk 0:00:08.8]} 46. Ke5 {[%clk 0:00:08.8]} 46... Ng4+ {[%clk 0:00:08.8]}
47. Kf4 {[%clk 0:00:08.7]} 47... Nxh2 {[%clk 0:00:09.7]} 48. Ne5+ {[%clk
0:00:08.4]} 48... Kc7 {[%clk 0:00:09.8]} 49. Kg3 {[%clk 0:00:08.7]} 49... Nf3
{[%clk 0:00:09.5]} 50. Nc4 {[%clk 0:00:08.7]} 50... Nd4 {[%clk 0:00:08.9]} 51.
Kf4 {[%clk 0:00:09]} 51... Ne6+ {[%clk 0:00:09.3]} 52. Ke5 {[%clk 0:00:09.9]}
52... Nxc5 {[%clk 0:00:10.1]} 53. Kd4 {[%clk 0:00:10.1]} 53... Nd7 {[%clk
0:00:09.3]} 54. Ke4 {[%clk 0:00:09.5]} 54... Bg4 {[%clk 0:00:07.9]} 55. Nb2
{[%clk 0:00:07.5]} 55... Bf5+ {[%clk 0:00:08.8]} 56. Kd4 {[%clk 0:00:07.9]}
56... g5 {[%clk 0:00:08.3]} 57. Kc4 {[%clk 0:00:08.8]} 57... g4 {[%clk
0:00:08.7]} 58. Kd4 {[%clk 0:00:09.4]} 58... g3 {[%clk 0:00:09.2]} 59. Ke3
{[%clk 0:00:10.3]} 59... Be4 {[%clk 0:00:08.1]} 60. Nc4 {[%clk 0:00:08.3]} 60...
g2 {[%clk 0:00:08.4]} 61. Kf2 {[%clk 0:00:08.8]} 61... Bd5 {[%clk 0:00:08.8]}
62. Nd2 {[%clk 0:00:09]} 62... a5 {[%clk 0:00:09.1]} 63. Nb1 {[%clk 0:00:09.9]}
63... a4 {[%clk 0:00:09.6]} 64. Na3 {[%clk 0:00:10.7]} 64... Nf6 {[%clk
0:00:09.1]} 65. Kg1 {[%clk 0:00:11.6]} 65... Ng4 {[%clk 0:00:06.7]} 66. Nb5+
{[%clk 0:00:12]} 66... Kd8 {[%clk 0:00:06.2]} 67. Nd4 {[%clk 0:00:12.1]} 67...
Ne3 {[%clk 0:00:06.1]} 68. Kf2 {[%clk 0:00:11.7]} 68... Nd1+ {[%clk 0:00:06]}
69. Kg1 {[%clk 0:00:11.8]} 69... Nc3 {[%clk 0:00:06.4]} 70. Kf2 {[%clk
0:00:11.8]} 70... a3 {[%clk 0:00:07.1]} 71. Nc2 {[%clk 0:00:11.9]} 71... a2
{[%clk 0:00:07.2]} 72. Na1 {[%clk 0:00:12.4]} 72... Nb1 {[%clk 0:00:06.6]} 73.
Nc2 {[%clk 0:00:12.3]} 73... Nd2 {[%clk 0:00:06.9]} 74. Ke3 {[%clk 0:00:12.3]}
74... g1=Q+ {[%clk 0:00:06.1]} 75. Kxd2 {[%clk 0:00:12.8]} 75... a1=Q {[%clk
0:00:07]} 76. Nxa1 {[%clk 0:00:13]} 76... Qxa1 {[%clk 0:00:07.2]} 77. Kd3 {[%clk
0:00:13.9]} 77... Qe5 {[%clk 0:00:07.1]} 78. Kd2 {[%clk 0:00:13.4]} 78... Kd7
{[%clk 0:00:08]} 79. Kd3 {[%clk 0:00:12.1]} 79... Kd6 {[%clk 0:00:08.9]} 80. Kd2
{[%clk 0:00:12.5]} 80... Qg3 {[%clk 0:00:08.8]} 81. Kc1 {[%clk 0:00:12.1]} 81...
Kc5 {[%clk 0:00:09.5]} 82. Kb2 {[%clk 0:00:13]} 82... Kc4 {[%clk 0:00:09.6]} 83.
Kc2 {[%clk 0:00:13.9]} 83... Qg2+ {[%clk 0:00:09.9]} 84. Kd1 {[%clk 0:00:14.3]}
84... Kd3 {[%clk 0:00:10.1]} 0-1

[Event "Late-Titled-Tuesday-Blitz-October-17-2023"]
[Site "Chess.com"]
[Date "2023.10.17"]
[Round "5"]
[White "Alphafischer2019"]
[Black "Tunahan_Makaraci"]
[Result "0-1"]
[WhiteElo "2568"]
[BlackElo "2359"]
[TimeControl "180+1"]
[EndTime "14:56:25 PDT"]
[Termination "Tunahan_Makaraci won by checkmate"]

1. e4 {[%clk 0:03:00.9]} 1... c5 {[%clk 0:02:58.1]} 2. Nf3 {[%clk 0:03:01.1]}
2... d6 {[%clk 0:02:57.7]} 3. g3 {[%clk 0:02:59.4]} 3... Nc6 {[%clk 0:02:55.6]}
4. Bg2 {[%clk 0:03:00]} 4... e5 {[%clk 0:02:53.9]} 5. O-O {[%clk 0:02:59.9]}
5... g6 {[%clk 0:02:53.8]} 6. d3 {[%clk 0:02:55.2]} 6... f5 {[%clk 0:02:52.6]}
7. exf5 {[%clk 0:02:49.9]} 7... Bxf5 {[%clk 0:02:44.4]} 8. Nh4 {[%clk
0:02:47.7]} 8... Be6 {[%clk 0:02:40.2]} 9. f4 {[%clk 0:02:46.2]} 9... Nge7
{[%clk 0:02:28.7]} 10. Nc3 {[%clk 0:02:42.4]} 10... Bg7 {[%clk 0:02:28.4]} 11.
fxe5 {[%clk 0:02:40.2]} 11... Bxe5 {[%clk 0:02:25.3]} 12. Bg5 {[%clk 0:02:39.1]}
12... Qd7 {[%clk 0:02:22.7]} 13. Bf6 {[%clk 0:02:28]} 13... Rf8 {[%clk
0:02:12.2]} 14. Bxe5 {[%clk 0:02:26.6]} 14... Nxe5 {[%clk 0:02:06.1]} 15. Rxf8+
{[%clk 0:02:24.3]} 15... Kxf8 {[%clk 0:02:07]} 16. d4 {[%clk 0:02:23.9]} 16...
cxd4 {[%clk 0:02:04.4]} 17. Qxd4 {[%clk 0:02:23]} 17... N7c6 {[%clk 0:02:01.8]}
18. Rf1+ {[%clk 0:02:22.6]} 18... Kg8 {[%clk 0:02:01.6]} 19. Qf4 {[%clk
0:02:14.1]} 19... Qe7 {[%clk 0:01:53.9]} 20. Ne4 {[%clk 0:02:07.9]} 20... Rf8
{[%clk 0:01:46.9]} 21. Qxf8+ {[%clk 0:02:06.6]} 21... Qxf8 {[%clk 0:01:46.4]}
22. Rxf8+ {[%clk 0:02:07.5]} 22... Kxf8 {[%clk 0:01:46.1]} 23. Nxd6 {[%clk
0:02:08.1]} 23... Bxa2 {[%clk 0:01:44.3]} 24. Nxb7 {[%clk 0:02:04.5]} 24... Nb4
{[%clk 0:01:43.2]} 25. Be4 {[%clk 0:01:59.5]} 25... Bb1 {[%clk 0:01:42.3]} 26.
Nd6 {[%clk 0:01:44.3]} 26... Bxc2 {[%clk 0:01:39.4]} 27. Bxc2 {[%clk 0:01:35.8]}
27... Nxc2 {[%clk 0:01:40.3]} 28. Kf2 {[%clk 0:01:30.4]} 28... Nd3+ {[%clk
0:01:33.9]} 29. Ke2 {[%clk 0:01:30.7]} 29... Nxb2 {[%clk 0:01:34.8]} 30. Kd2
{[%clk 0:01:31.4]} 30... Na3 {[%clk 0:01:31.7]} 31. Kc3 {[%clk 0:01:30.2]} 31...
Nd1+ {[%clk 0:01:26.5]} 32. Kb3 {[%clk 0:01:23.8]} 32... Nb1 {[%clk 0:01:19.5]}
33. Kc2 {[%clk 0:01:22.9]} 33... Nbc3 {[%clk 0:01:13.5]} 34. Nc4 {[%clk
0:01:21]} 34... Ke7 {[%clk 0:01:12.5]} 35. Nf3 {[%clk 0:01:18.3]} 35... Kd7
{[%clk 0:01:10.4]} 36. Ng5 {[%clk 0:01:17.3]} 36... h6 {[%clk 0:01:10.1]} 37.
Nf7 {[%clk 0:01:17.9]} 37... Kc6 {[%clk 0:01:04.6]} 38. Nxh6 {[%clk 0:01:15.6]}
38... Kc5 {[%clk 0:01:05.5]} 39. Ne5 {[%clk 0:01:13.3]} 39... a5 {[%clk
0:01:04.6]} 40. Nhg4 {[%clk 0:01:02.7]} 40... a4 {[%clk 0:01:02.8]} 41. Nd3+
{[%clk 0:00:44.4]} 41... Kb5 {[%clk 0:00:59.7]} 42. Nc1 {[%clk 0:00:39.6]} 42...
Kb4 {[%clk 0:00:51.3]} 43. Ne5 {[%clk 0:00:37.8]} 43... g5 {[%clk 0:00:42.3]}
44. h4 {[%clk 0:00:36.7]} 44... gxh4 {[%clk 0:00:42.1]} 45. gxh4 {[%clk
0:00:37.6]} 45... Ne3+ {[%clk 0:00:37.9]} 46. Kd3 {[%clk 0:00:38]} 46... Ned5
{[%clk 0:00:34.5]} 47. Kd4 {[%clk 0:00:30.4]} 47... Nf6 {[%clk 0:00:29.3]} 48.
Ned3+ {[%clk 0:00:28.2]} 48... Ka3 {[%clk 0:00:22.9]} 49. Kxc3 {[%clk
0:00:26.7]} 49... Nd5+ {[%clk 0:00:19.9]} 50. Kd4 {[%clk 0:00:26.1]} 50... Ne7
{[%clk 0:00:15.9]} 51. h5 {[%clk 0:00:24.7]} 51... Nf5+ {[%clk 0:00:12.5]} 52.
Ke5 {[%clk 0:00:25.1]} 52... Nh6 {[%clk 0:00:13.2]} 53. Nf4 {[%clk 0:00:17.1]}
53... Kb2 {[%clk 0:00:12.5]} 54. Nfd3+ {[%clk 0:00:15]} 54... Ka3 {[%clk
0:00:12.4]} 55. Nc5 {[%clk 0:00:13.6]} 55... Kb4 {[%clk 0:00:09.1]} 56. N1d3+
{[%clk 0:00:12.9]} 56... Kc4 {[%clk 0:00:08.4]} 57. Kf6 {[%clk 0:00:11.2]} 57...
a3 {[%clk 0:00:07.1]} 58. Kg6 {[%clk 0:00:11.4]} 58... a2 {[%clk 0:00:03.3]} 59.
Nb3 {[%clk 0:00:06.8]} 59... Ng4 {[%clk 0:00:02.9]} 60. Nd2+ {[%clk 0:00:06]}
60... Kxd3 {[%clk 0:00:02.6]} 61. Nb3 {[%clk 0:00:06.6]} 61... Kc3 {[%clk
0:00:02.8]} 62. Na1 {[%clk 0:00:06.4]} 62... Kb2 {[%clk 0:00:02.8]} 63. Kg5
{[%clk 0:00:07.3]} 63... Ne5 {[%clk 0:00:02.7]} 64. Kf6 {[%clk 0:00:07.2]} 64...
Nd7+ {[%clk 0:00:02.7]} 65. Ke7 {[%clk 0:00:06.5]} 65... Kxa1 {[%clk 0:00:02.4]}
66. h6 {[%clk 0:00:06.6]} 66... Kb1 {[%clk 0:00:03.3]} 67. h7 {[%clk 0:00:06.6]}
67... a1=Q {[%clk 0:00:03.4]} 68. Kxd7 {[%clk 0:00:07]} 68... Qh8 {[%clk
0:00:04.3]} 69. Ke7 {[%clk 0:00:06.9]} 69... Kc2 {[%clk 0:00:05.2]} 70. Kf7
{[%clk 0:00:07.3]} 70... Kd3 {[%clk 0:00:06.1]} 71. Kg6 {[%clk 0:00:07.8]} 71...
Ke4 {[%clk 0:00:07]} 72. Kh6 {[%clk 0:00:07.6]} 72... Kf5 {[%clk 0:00:07.9]} 73.
Kh5 {[%clk 0:00:07.8]} 73... Qxh7# {[%clk 0:00:08.6]} 0-1

[Event "Late-Titled-Tuesday-Blitz-October-17-2023"]
[Site "Chess.com"]
[Date "2023.10.17"]
[Round "6"]
[White "as9killer2"]
[Black "Tunahan_Makaraci"]
[Result "0-1"]
[WhiteElo "2490"]
[BlackElo "2377"]
[TimeControl "180+1"]
[EndTime "15:00:21 PDT"]
[Termination "Tunahan_Makaraci won by resignation"]

1. c4 {[%clk 0:03:00.5]} 1... e6 {[%clk 0:02:59.6]} 2. Nc3 {[%clk 0:03:01.4]}
2... d5 {[%clk 0:02:59.8]} 3. e3 {[%clk 0:03:00.9]} 3... c5 {[%clk 0:03:00]} 4.
cxd5 {[%clk 0:03:00.8]} 4... exd5 {[%clk 0:02:59.6]} 5. d4 {[%clk 0:03:01]} 5...
Nf6 {[%clk 0:02:58.4]} 6. Nf3 {[%clk 0:03:00.6]} 6... c4 {[%clk 0:02:55.8]} 7.
b3 {[%clk 0:02:56.5]} 7... Bb4 {[%clk 0:02:54.6]} 8. Bd2 {[%clk 0:02:56.2]} 8...
Bxc3 {[%clk 0:02:52.4]} 9. Bxc3 {[%clk 0:02:56.4]} 9... Ne4 {[%clk 0:02:52.9]}
10. Bb4 {[%clk 0:02:55.1]} 10... a5 {[%clk 0:02:50.7]} 11. a3 {[%clk 0:02:53.8]}
11... axb4 {[%clk 0:02:49.1]} 12. axb4 {[%clk 0:02:53.8]} 12... Rxa1 {[%clk
0:02:48.7]} 13. Qxa1 {[%clk 0:02:54.2]} 13... Qb6 {[%clk 0:02:47.2]} 0-1

[Event "Late-Titled-Tuesday-Blitz-October-17-2023"]
[Site "Chess.com"]
[Date "2023.10.17"]
[Round "6"]
[White "balachess2006"]
[Black "Schwindle"]
[Result "1-0"]
[WhiteElo "2599"]
[BlackElo "2409"]
[TimeControl "180+1"]
[EndTime "15:02:10 PDT"]
[Termination "balachess2006 won by resignation"]

1. Nf3 {[%clk 0:03:00.9]} 1... Nf6 {[%clk 0:02:59.6]} 2. c4 {[%clk 0:03:01]}
2... e6 {[%clk 0:03:00]} 3. Nc3 {[%clk 0:03:01]} 3... d5 {[%clk 0:02:58.3]} 4.
e3 {[%clk 0:03:01.4]} 4... Be7 {[%clk 0:02:58.1]} 5. b3 {[%clk 0:03:01.9]} 5...
O-O {[%clk 0:02:58.4]} 6. Bb2 {[%clk 0:03:02.4]} 6... c5 {[%clk 0:02:58.9]} 7.
cxd5 {[%clk 0:03:02.2]} 7... Nxd5 {[%clk 0:02:57.6]} 8. Qc2 {[%clk 0:03:00.9]}
8... Nc6 {[%clk 0:02:53.7]} 9. Be2 {[%clk 0:02:56.4]} 9... b6 {[%clk 0:02:33.3]}
10. O-O {[%clk 0:02:51.8]} 10... Bb7 {[%clk 0:02:31.8]} 11. Ne4 {[%clk
0:02:48.3]} 11... Ndb4 {[%clk 0:02:13.6]} 12. Qb1 {[%clk 0:02:47.5]} 12... Qd7
{[%clk 0:01:55.5]} 13. a3 {[%clk 0:02:44.2]} 13... Nd5 {[%clk 0:01:54.9]} 14.
Neg5 {[%clk 0:02:39.3]} 14... f5 {[%clk 0:01:47.2]} 15. e4 {[%clk 0:02:16.8]}
15... Nf4 {[%clk 0:01:42.9]} 16. Bc4 {[%clk 0:02:16.5]} 16... h6 {[%clk
0:01:39.9]} 17. Nxe6 {[%clk 0:02:16.7]} 17... Nxe6 {[%clk 0:01:39.7]} 18. exf5
{[%clk 0:02:16.9]} 18... Rxf5 {[%clk 0:01:39.1]} 19. Qxf5 {[%clk 0:02:15.4]} 1-0

[Event "Late-Titled-Tuesday-Blitz-October-17-2023"]
[Site "Chess.com"]
[Date "2023.10.17"]
[Round "6"]
[White "KNVB"]
[Black "victormago"]
[Result "1-0"]
[WhiteElo "2626"]
[BlackElo "2452"]
[TimeControl "180+1"]
[EndTime "15:02:46 PDT"]
[Termination "KNVB won by checkmate"]

1. d4 {[%clk 0:03:00.9]} 1... Nf6 {[%clk 0:02:56.1]} 2. Nc3 {[%clk 0:03:01]}
2... d5 {[%clk 0:02:55.2]} 3. Bf4 {[%clk 0:03:01.3]} 3... a6 {[%clk 0:02:51.7]}
4. e3 {[%clk 0:03:00.9]} 4... Bf5 {[%clk 0:02:51.1]} 5. Nf3 {[%clk 0:03:00.6]}
5... e6 {[%clk 0:02:50.3]} 6. Ne5 {[%clk 0:03:00.4]} 6... c5 {[%clk 0:02:49.1]}
7. g4 {[%clk 0:02:59.5]} 7... Bg6 {[%clk 0:02:48.8]} 8. h4 {[%clk 0:02:57]} 8...
cxd4 {[%clk 0:02:46.3]} 9. exd4 {[%clk 0:02:55.9]} 9... h5 {[%clk 0:02:20.2]}
10. Nxg6 {[%clk 0:02:42.6]} 10... fxg6 {[%clk 0:02:20.4]} 11. g5 {[%clk
0:02:32]} 11... Nfd7 {[%clk 0:02:18.3]} 12. Bd3 {[%clk 0:02:31.1]} 12... Kf7
{[%clk 0:02:18.4]} 13. Qf3 {[%clk 0:02:30.2]} 13... Kg8 {[%clk 0:02:09.9]} 14.
Nxd5 {[%clk 0:01:36.8]} 14... exd5 {[%clk 0:02:03.4]} 15. Qxd5+ {[%clk
0:01:36.6]} 15... Kh7 {[%clk 0:02:03.5]} 16. Bxg6+ {[%clk 0:01:36.1]} 16... Kxg6
{[%clk 0:02:00.3]} 17. Qe4+ {[%clk 0:01:36.6]} 17... Kf7 {[%clk 0:01:57.1]} 18.
g6+ {[%clk 0:01:36.7]} 18... Kg8 {[%clk 0:01:37.4]} 19. Qd5# {[%clk 0:01:33.4]}
1-0

[Event "Late-Titled-Tuesday-Blitz-October-17-2023"]
[Site "Chess.com"]
[Date "2023.10.17"]
[Round "6"]
[White "ellatambien"]
[Black "Inepton_Fermion"]
[Result "1-0"]
[WhiteElo "2604"]
[BlackElo "2379"]
[TimeControl "180+1"]
[EndTime "15:03:02 PDT"]
[Termination "ellatambien won by resignation"]

1. e4 {[%clk 0:03:00.9]} 1... c5 {[%clk 0:02:59.1]} 2. Nf3 {[%clk 0:03:00.6]}
2... e6 {[%clk 0:02:58.9]} 3. d3 {[%clk 0:03:00.4]} 3... Nc6 {[%clk 0:02:57.6]}
4. g3 {[%clk 0:03:00.3]} 4... d5 {[%clk 0:02:55]} 5. Qe2 {[%clk 0:02:59.8]} 5...
Be7 {[%clk 0:02:50.8]} 6. Bg2 {[%clk 0:02:59.6]} 6... Nf6 {[%clk 0:02:50.5]} 7.
O-O {[%clk 0:02:59.4]} 7... O-O {[%clk 0:02:50.5]} 8. e5 {[%clk 0:02:59.9]} 8...
Nd7 {[%clk 0:02:50.1]} 9. c4 {[%clk 0:03:00.5]} 9... d4 {[%clk 0:02:49.7]} 10.
h4 {[%clk 0:02:58.7]} 10... h6 {[%clk 0:02:33.1]} 11. Bf4 {[%clk 0:02:55.7]}
11... Re8 {[%clk 0:02:31.2]} 12. a3 {[%clk 0:02:54.6]} 12... Bf8 {[%clk
0:02:30.3]} 13. Nbd2 {[%clk 0:02:52.9]} 13... Rb8 {[%clk 0:02:21.7]} 14. Ne4
{[%clk 0:02:52.6]} 14... a6 {[%clk 0:02:10.6]} 15. Rab1 {[%clk 0:02:51.5]} 15...
b5 {[%clk 0:02:06.8]} 16. b3 {[%clk 0:02:50.8]} 16... Qa5 {[%clk 0:02:03.5]} 17.
Bd2 {[%clk 0:02:38.2]} 17... Qc7 {[%clk 0:02:02]} 18. Bf4 {[%clk 0:02:34.2]}
18... Qa5 {[%clk 0:01:54.2]} 19. Nfd2 {[%clk 0:02:14.9]} 19... Ncxe5 {[%clk
0:01:39.5]} 20. Bxe5 {[%clk 0:02:05.8]} 20... Nxe5 {[%clk 0:01:40.4]} 21. Nxc5
{[%clk 0:02:06.2]} 21... Qxa3 {[%clk 0:01:21.2]} 22. Qxe5 {[%clk 0:02:03.3]}
22... Qxc5 {[%clk 0:01:20]} 23. Qxb8 {[%clk 0:02:02.4]} 1-0